fUST/lending_fUST_20250508
["ID","MTS","AMOUNT","RATE_DAILY","PERIOD"]
[360278690,1746691860603,-1522.11,0.0001178,2]
[360278691,1746691860614,-2551.38,0.0001178,2]
[360278692,1746691860624,-673.85,0.0001178,2]
[360278693,1746691860633,-794.85,0.0001178,2]
[360278694,1746691860642,-400.0,0.0001178,2]
[360278695,1746691860652,-405.47,0.0001178,2]
[360278696,1746691860661,-1062.22,0.0001178,2]
[360278697,1746691860673,-400.0,0.0001178,2]
[360278698,1746691860682,-400.0,0.0001178,2]
[360278699,1746691860692,-961.04,0.0001178,2]
[360278700,1746691860701,-400.0,0.0001178,2]
[360278701,1746691860711,-985.13,0.0001178,2]
[360278702,1746691860721,-150.047,0.00011787,2]
[360278703,1746691860731,-150.0,0.00011787,2]
[360278704,1746691860741,-151.0,0.000118,2]
[360278705,1746691860751,-151.0,0.000118,2]
[360278706,1746691860760,-150.079,0.00011827,2]
[360278707,1746691860770,-150.0,0.00011827,2]
[360278708,1746691860779,-150.0,0.00011827,2]
[360278709,1746691860788,-150.023,0.00011827,2]
[360278710,1746691860798,-546.0,0.00011827,2]
[360278711,1746691860807,-151.0,0.000119,2]
[360278712,1746691860817,-500.0,0.00011973,2]
[360278713,1746691860827,-26722.80954284,0.00012,2]
[360278714,1746691860836,-151.0,0.00012,2]
[360278715,1746691860845,-400.0,0.00012054,2]
[360278716,1746691860854,-400.0,0.00012054,2]
[360278717,1746691860865,-400.0,0.00012054,2]
[360278718,1746691860875,-400.0,0.00012054,2]
[360278719,1746691860884,-400.0,0.00012054,2]
[360278720,1746691860894,-400.0,0.00012054,2]
[360278721,1746691860903,-433.54,0.00012054,2]
[360278722,1746691860912,-400.0,0.00012054,2]
[360278723,1746691860921,-403.02,0.00012054,2]
[360278724,1746691860931,-571.54,0.00012054,2]
[360278725,1746691860940,-530.31,0.00012054,2]
[360278726,1746691860950,-400.0,0.00012054,2]
[360278727,1746691860961,-400.0,0.00012054,2]
[360278728,1746691860971,-400.0,0.00012054,2]
[360278729,1746691860981,-3128.98,0.00012054,2]
[360278730,1746691860991,-400.0,0.00012054,2]
[360278731,1746691861000,-400.0,0.00012054,2]
[360278732,1746691861010,-400.0,0.00012054,2]
[360278733,1746691861019,-400.0,0.00012054,2]
[360278734,1746691861028,-275.97311956,0.00012054,2]
[360278735,1746691861037,-400.0,0.00012054,2]
[360278736,1746691861047,-400.0,0.00012054,2]
[360278737,1746691861056,-400.0,0.00012054,2]
[360278738,1746691861068,-584.97,0.00012054,2]
[360278739,1746691861077,-400.0,0.00012054,2]
[360278740,1746691861087,-1397.87,0.00012054,2]
[360278741,1746691861096,-577.68,0.00012054,2]
[360278742,1746691861106,-825.82,0.00012054,2]
[360278743,1746691861116,-816.51,0.00012054,2]
[360278744,1746691861126,-400.0,0.00012054,2]
[360278745,1746691861135,-400.0,0.00012054,2]
[360278746,1746691861145,-400.0,0.00012054,2]
[360278747,1746691861155,-400.0,0.00012054,2]
[360278748,1746691861164,-699.63,0.00012054,2]
[360278749,1746691861174,-468.54,0.00012054,2]
[360278750,1746691861183,-400.0,0.00012054,2]
[360278751,1746691861193,-211.56892629,0.00012054,2]
[360278752,1746691861203,-400.0,0.00012054,2]
[360278753,1746691861213,-400.0,0.00012054,2]
[360278754,1746691861223,-400.0,0.00012054,2]
[360278755,1746691861232,-400.0,0.00012054,2]
[360278756,1746691861241,-400.0,0.00012054,2]
[360278757,1746691861251,-400.0,0.00012054,2]
[360278758,1746691861261,-1266.92,0.00012054,2]
[360278759,1746691861271,-400.0,0.00012054,2]
[360278760,1746691861281,-400.0,0.00012054,2]
[360278761,1746691861290,-537.24,0.00012054,2]
[360278762,1746691861300,-400.0,0.00012054,2]
[360278763,1746691861313,-400.0,0.00012054,2]
[360278764,1746691861323,-400.0,0.00012054,2]
[360278765,1746691861332,-1060.69,0.00012054,2]
[360278766,1746691861342,-400.0,0.00012054,2]
[360278767,1746691861352,-400.0,0.00012054,2]
[360278768,1746691861362,-455.46,0.00012054,2]
[360278769,1746691861371,-431.55,0.00012054,2]
[360278770,1746691861380,-537.86,0.00012054,2]
[360278771,1746691861390,-400.0,0.00012054,2]
[360278772,1746691861400,-504.47,0.00012054,2]
[360278773,1746691861409,-555.47,0.00012054,2]
[360278774,1746691861418,-400.0,0.00012054,2]
[360278775,1746691861427,-400.0,0.00012054,2]
[360278776,1746691861437,-653.83,0.00012054,2]
[360278777,1746691861447,-737.6,0.00012054,2]
[360278778,1746691861457,-234.24111863,0.00012054,2]
[360278779,1746691861466,-2177.3,0.00012054,2]
[360278780,1746691861475,-1364.01,0.00012054,2]
[360278781,1746691861484,-400.0,0.00012054,2]
[360278782,1746691861493,-396.59753031,0.00012054,2]
[360278783,1746691861502,-400.0,0.00012054,2]
[360278784,1746691861512,-413.04,0.00012054,2]
[360278785,1746691861522,-3087.18,0.00012054,2]
[360278786,1746691861531,-400.0,0.00012054,2]
[360278787,1746691861540,-845.22,0.00012054,2]
[360278788,1746691861549,-602.15,0.00012054,2]
[360278789,1746691861559,-400.0,0.00012054,2]
[360278790,1746691861568,-486.11,0.00012054,2]
[360278791,1746691861577,-400.0,0.00012054,2]
[360278792,1746691861586,-400.0,0.00012054,2]
[360278793,1746691861596,-946.41,0.00012054,2]
[360278794,1746691861606,-1091.07,0.00012054,2]
[360278795,1746691861617,-655.11,0.00012054,2]
[360278796,1746691861626,-3287.17,0.00012054,2]
[360278797,1746691861635,-400.0,0.00012054,2]
[360278798,1746691861645,-400.0,0.00012054,2]
[360278799,1746691861654,-832.05,0.00012054,2]
[360278800,1746691861663,-475.38,0.00012054,2]
[360278801,1746691861673,-604.46,0.00012054,2]
[360278802,1746691861682,-731.17,0.00012054,2]
[360278803,1746691861691,-1329.5,0.00012054,2]
[360278804,1746691861701,-400.0,0.00012054,2]
[360278805,1746691861711,-400.0,0.00012054,2]
[360278806,1746691861720,-400.0,0.00012054,2]
[360278807,1746691861729,-400.0,0.00012054,2]
[360278808,1746691861738,-400.0,0.00012054,2]
[360278809,1746691861749,-470.2,0.00012054,2]
[360278810,1746691861758,-400.0,0.00012054,2]
[360278811,1746691861767,-1058.63,0.00012054,2]
[360278812,1746691861777,-1690.75,0.00012054,2]
[360278813,1746691861786,-824.24,0.00012054,2]
[360278814,1746691861795,-732.33,0.00012054,2]
[360278815,1746691861805,-1544.62,0.00012054,2]
[360278816,1746691861814,-785.37,0.00012054,2]
[360278817,1746691861824,-400.0,0.00012054,2]
[360278818,1746691861833,-400.0,0.00012054,2]
[360278819,1746691861843,-816.04,0.00012054,2]
[360278820,1746691861852,-400.0,0.00012054,2]
[360278821,1746691861861,-400.0,0.00012054,2]
[360278822,1746691861870,-1999.86,0.00012054,2]
[360278823,1746691861879,-1522.11,0.00012054,2]
[360278824,1746691861888,-2551.38,0.00012054,2]
[360278825,1746691861898,-673.85,0.00012054,2]
[360278826,1746691861907,-794.85,0.00012054,2]
[360278827,1746691861917,-400.0,0.00012054,2]
[360278828,1746691861927,-405.47,0.00012054,2]
[360278829,1746691861936,-1062.22,0.00012054,2]
[360278830,1746691861946,-400.0,0.00012054,2]
[360278831,1746691861956,-262.80523359,0.00012054,2]
[360278832,1746691861966,-961.04,0.00012054,2]
[360278833,1746691861976,-171.19447436,0.00012054,2]
[360278834,1746691861985,-985.13,0.00012054,2]
[360278835,1746691861995,-202.465,0.00012091,2]
[360278836,1746691862004,-151.0,0.000121,2]
[360278837,1746691862014,-151.0,0.000123,2]
[360278838,1746691862023,-400.0,0.00012328,2]
[360278839,1746691862033,-400.0,0.00012328,2]
[360278840,1746691862042,-400.0,0.00012328,2]
[360278841,1746691862053,-400.0,0.00012328,2]
[360278842,1746691862063,-400.0,0.00012328,2]
[360278843,1746691862073,-400.0,0.00012328,2]
[360278844,1746691862082,-433.54,0.00012328,2]
[360278845,1746691862092,-400.0,0.00012328,2]
[360278846,1746691862102,-403.02,0.00012328,2]
[360278847,1746691862112,-571.54,0.00012328,2]
[360278848,1746691862122,-530.31,0.00012328,2]
[360278849,1746691862131,-400.0,0.00012328,2]
[360278850,1746691862141,-400.0,0.00012328,2]
[360278851,1746691862151,-430.58228431,0.00012328,2]
[360278852,1746691862161,-3128.98,0.00012328,2]
[360278853,1746691862171,-400.0,0.00012328,2]
[360278854,1746691862180,-400.0,0.00012328,2]
[360278855,1746691862190,-400.0,0.00012328,2]
[360278856,1746691862200,-400.0,0.00012328,2]
[360278857,1746691862211,-400.0,0.00012328,2]
[360278858,1746691862220,-400.0,0.00012328,2]
[360278859,1746691862230,-400.0,0.00012328,2]
[360278860,1746691862241,-584.97,0.00012328,2]
[360278861,1746691862250,-400.0,0.00012328,2]
[360278862,1746691862261,-1397.87,0.00012328,2]
[360278863,1746691862270,-577.68,0.00012328,2]
[360278864,1746691862280,-825.82,0.00012328,2]
[360278865,1746691862289,-816.51,0.00012328,2]
[360278866,1746691862299,-400.0,0.00012328,2]
[360278867,1746691862309,-400.0,0.00012328,2]
[360278868,1746691862324,-400.0,0.00012328,2]
[360278869,1746691862333,-400.0,0.00012328,2]
[360278870,1746691862343,-699.63,0.00012328,2]
[360278871,1746691862352,-468.54,0.00012328,2]
[360278872,1746691862363,-400.0,0.00012328,2]
[360278873,1746691862372,-400.0,0.00012328,2]
[360278874,1746691862381,-400.0,0.00012328,2]
[360278875,1746691862392,-400.0,0.00012328,2]
[360278876,1746691862401,-400.0,0.00012328,2]
[360278877,1746691862411,-400.0,0.00012328,2]
[360278878,1746691862422,-400.0,0.00012328,2]
[360278879,1746691862433,-1266.92,0.00012328,2]
[360278880,1746691862442,-400.0,0.00012328,2]
[360278881,1746691862451,-400.0,0.00012328,2]
[360278882,1746691862461,-537.24,0.00012328,2]
[360278883,1746691862472,-400.0,0.00012328,2]
[360278884,1746691862482,-400.0,0.00012328,2]
[360278885,1746691862493,-400.0,0.00012328,2]
[360278886,1746691862503,-1060.69,0.00012328,2]
[360278887,1746691862514,-400.0,0.00012328,2]
[360278888,1746691862524,-400.0,0.00012328,2]
[360278889,1746691862535,-455.46,0.00012328,2]
[360278890,1746691862545,-431.55,0.00012328,2]
[360278891,1746691862555,-537.86,0.00012328,2]
[360278892,1746691862565,-464.03134247,0.00012328,2]
[360278893,1746691862575,-504.47,0.00012328,2]
[360278894,1746691862584,-555.47,0.00012328,2]
[360278895,1746691862594,-400.0,0.00012328,2]
[360278896,1746691862716,-400.0,0.00012328,2]
[360278897,1746691862727,-653.83,0.00012328,2]
[360278898,1746691862737,-737.6,0.00012328,2]
[360278899,1746691862747,-2177.3,0.00012328,2]
[360278900,1746691862756,-1364.01,0.00012328,2]
[360278901,1746691862766,-400.0,0.00012328,2]
[360278902,1746691862775,-400.0,0.00012328,2]
[360278903,1746691862785,-413.04,0.00012328,2]
[360278904,1746691862795,-3087.18,0.00012328,2]
[360278905,1746691862804,-400.0,0.00012328,2]
[360278906,1746691862813,-845.22,0.00012328,2]
[360278907,1746691862822,-602.15,0.00012328,2]
[360278908,1746691862832,-400.0,0.00012328,2]
[360278909,1746691862842,-486.11,0.00012328,2]
[360278910,1746691862852,-400.0,0.00012328,2]
[360278911,1746691862862,-400.0,0.00012328,2]
[360278912,1746691862871,-946.41,0.00012328,2]
[360278913,1746691862881,-1091.07,0.00012328,2]
[360278914,1746691862890,-655.11,0.00012328,2]
[360278915,1746691862899,-3287.17,0.00012328,2]
[360278916,1746691862908,-400.0,0.00012328,2]
[360278917,1746691862917,-400.0,0.00012328,2]
[360278918,1746691862927,-832.05,0.00012328,2]
[360278919,1746691862936,-475.38,0.00012328,2]
[360278920,1746691862945,-604.46,0.00012328,2]
[360278921,1746691862954,-731.17,0.00012328,2]
[360278922,1746691862963,-1329.5,0.00012328,2]
[360278923,1746691862972,-400.0,0.00012328,2]
[360278924,1746691862982,-400.0,0.00012328,2]
[360278925,1746691862991,-400.0,0.00012328,2]
[360278926,1746691863000,-400.0,0.00012328,2]
[360278927,1746691863009,-262.39562269,0.00012328,2]
[360278928,1746691863019,-470.2,0.00012328,2]
[360278929,1746691863028,-400.0,0.00012328,2]
[360278930,1746691863038,-1058.63,0.00012328,2]
[360278931,1746691863048,-1690.75,0.00012328,2]
[360278932,1746691863058,-824.24,0.00012328,2]
[360278933,1746691863067,-732.33,0.00012328,2]
[360278934,1746691863078,-1544.62,0.00012328,2]
[360278935,1746691863087,-785.37,0.00012328,2]
[360278936,1746691863097,-400.0,0.00012328,2]
[360278937,1746691863107,-479.94191223,0.00012328,2]
[360278938,1746691863117,-816.04,0.00012328,2]
[360278939,1746691863127,-400.0,0.00012328,2]
[360278940,1746691863136,-400.0,0.00012328,2]
[360278941,1746691863146,-1999.86,0.00012328,2]
[360278942,1746691863155,-1522.11,0.00012328,2]
[360278943,1746691863165,-2551.38,0.00012328,2]
[360278944,1746691863175,-673.85,0.00012328,2]
[360278945,1746691863185,-794.85,0.00012328,2]
[360278946,1746691863195,-400.0,0.00012328,2]
[360278947,1746691863205,-405.47,0.00012328,2]
[360278948,1746691863215,-1062.22,0.00012328,2]
[360278949,1746691863224,-400.0,0.00012328,2]
[360278950,1746691863234,-961.04,0.00012328,2]
[360278951,1746691863244,-985.13,0.00012328,2]
[360278952,1746691863254,-1835.27,0.00012329,2]
[360278953,1746691863264,-1529.39,0.00012329,2]
[360278954,1746691863274,-1274.49,0.00012329,2]
[360278955,1746691863284,-1062.08,0.00012329,2]
[360278956,1746691863293,-885.06,0.00012329,2]
[360278957,1746691863303,-737.55,0.00012329,2]
[360278958,1746691863315,-614.63,0.00012329,2]
[360278959,1746691863324,-512.19,0.00012329,2]
[360278960,1746691863334,-426.83,0.00012329,2]
[360278961,1746691863344,-426.83,0.00012329,2]
[360278962,1746691863355,-284.55,0.00012329,2]
[360278963,1746691863365,-237.12,0.00012329,2]
[360278964,1746691863374,-197.6,0.00012329,2]
[360278965,1746691863384,-164.67,0.00012329,2]
[360278966,1746691863396,-823.38,0.00012329,2]
[360278967,1746691863406,-151.0,0.000124,2]
[360278968,1746691863415,-182.76050336,0.00012476,2]
[360278969,1746691863425,-155.0,0.00012497,2]
[360278970,1746691863434,-500.0,0.000125,2]
[360278971,1746691863444,-587.0,0.00012505,2]
[360278972,1746691863453,-5413.28333307,0.00012561,2]
[360278973,1746691863472,-7201.95172798,0.00012561,2]
[360278974,1746691863482,-422.07246323,0.0001257,2]
[360278975,1746691863491,-500.99493041,0.00012572,2]
[360278976,1746691863501,-160.0,0.00012584,2]
[360278977,1746691863510,-160.0,0.00012584,2]
[360278978,1746691863520,-160.0,0.00012584,2]
[360278979,1746691863529,-160.0,0.00012584,2]
[360278980,1746691863539,-212.10144473,0.00012584,2]
[360278981,1746691863548,-160.0,0.00012584,2]
[360278982,1746691863557,-314.04909194,0.00012584,2]
[360278983,1746691863567,-160.0,0.00012584,2]
[360278984,1746691863576,-160.0,0.00012584,2]
[360278985,1746691863586,-232.0,0.000126,2]
[360278986,1746691863595,-400.0,0.00012602,2]
[360278987,1746691863605,-186.62520313,0.00012602,2]
[360278988,1746691863616,-400.0,0.00012602,2]
[360278989,1746691863625,-400.0,0.00012602,2]
[360278990,1746691863634,-400.0,0.00012602,2]
[360278991,1746691863644,-529.93053608,0.00012602,2]
[360278992,1746691863653,-433.54,0.00012602,2]
[360278993,1746691863663,-400.0,0.00012602,2]
[360278994,1746691863672,-403.02,0.00012602,2]
[360278995,1746691863681,-571.54,0.00012602,2]
[360278996,1746691863691,-530.31,0.00012602,2]
[360278997,1746691863701,-400.0,0.00012602,2]
[360278998,1746691863710,-400.0,0.00012602,2]
[360278999,1746691863719,-364.63311121,0.00012602,2]
[360279000,1746691863733,-2764.34688879,0.00012602,2]
[360279001,1746691863742,-400.0,0.00012602,2]
[360279002,1746691863752,-400.0,0.00012602,2]
[360279003,1746691863762,-400.0,0.00012602,2]
[360279004,1746691863772,-400.0,0.00012602,2]
[360279005,1746691863781,-400.0,0.00012602,2]
[360279006,1746691863791,-400.0,0.00012602,2]
[360279007,1746691863801,-400.0,0.00012602,2]
[360279008,1746691863811,-584.97,0.00012602,2]
[360279009,1746691863820,-362.42435878,0.00012602,2]
[360279010,1746691863830,-1397.87,0.00012602,2]
[360279011,1746691863840,-577.68,0.00012602,2]
[360279012,1746691863849,-825.82,0.00012602,2]
[360279013,1746691863859,-816.51,0.00012602,2]
[360279014,1746691863870,-400.0,0.00012602,2]
[360279015,1746691863880,-400.0,0.00012602,2]
[360279016,1746691863890,-400.0,0.00012602,2]
[360279017,1746691863900,-400.0,0.00012602,2]
[360279018,1746691863910,-699.63,0.00012602,2]
[360279019,1746691863920,-468.54,0.00012602,2]
[360279020,1746691863930,-400.0,0.00012602,2]
[360279021,1746691863939,-400.0,0.00012602,2]
[360279022,1746691863949,-400.0,0.00012602,2]
[360279023,1746691863958,-400.0,0.00012602,2]
[360279024,1746691863967,-400.0,0.00012602,2]
[360279025,1746691863977,-373.85,0.00012602,2]
[360279026,1746691863986,-400.0,0.00012602,2]
[360279027,1746691863995,-1266.92,0.00012602,2]
[360279028,1746691864005,-400.0,0.00012602,2]
[360279029,1746691864014,-400.0,0.00012602,2]
[360279030,1746691864024,-537.24,0.00012602,2]
[360279031,1746691864034,-400.0,0.00012602,2]
[360279032,1746691864043,-400.0,0.00012602,2]
[360279033,1746691864053,-400.0,0.00012602,2]
[360279034,1746691864063,-1060.69,0.00012602,2]
[360279035,1746691864072,-400.0,0.00012602,2]
[360279036,1746691864083,-400.0,0.00012602,2]
[360279037,1746691864092,-455.46,0.00012602,2]
[360279038,1746691864102,-431.55,0.00012602,2]
[360279039,1746691864112,-537.86,0.00012602,2]
[360279040,1746691864122,-504.47,0.00012602,2]
[360279041,1746691864131,-555.47,0.00012602,2]
[360279042,1746691864141,-400.0,0.00012602,2]
[360279043,1746691864150,-400.0,0.00012602,2]
[360279044,1746691864160,-653.83,0.00012602,2]
[360279045,1746691864171,-737.6,0.00012602,2]
[360279046,1746691864180,-2177.3,0.00012602,2]
[360279047,1746691864190,-28.55248608,0.00012602,2]
[360279048,1746691864203,-1335.45751392,0.00012602,2]
[360279049,1746691864212,-16.08589788,0.00012602,2]
[360279050,1746691864223,-383.91410212,0.00012602,2]
[360279051,1746691864234,-400.0,0.00012602,2]
[360279052,1746691864245,-413.04,0.00012602,2]
[360279053,1746691864255,-3009.25726227,0.00012602,2]
[360279054,1746691864267,-77.92273773,0.00012602,2]
[360279055,1746691864277,-400.0,0.00012602,2]
[360279056,1746691864287,-845.22,0.00012602,2]
[360279057,1746691864297,-602.15,0.00012602,2]
[360279058,1746691864309,-400.0,0.00012602,2]
[360279059,1746691864320,-486.11,0.00012602,2]
[360279060,1746691864331,-400.0,0.00012602,2]
[360279061,1746691864341,-400.0,0.00012602,2]
[360279062,1746691864352,-652.58815288,0.00012602,2]
[360279063,1746691864364,-293.82184712,0.00012602,2]
[360279064,1746691864375,-1091.07,0.00012602,2]
[360279065,1746691864385,-655.11,0.00012602,2]
[360279066,1746691864397,-1053.5545444,0.00012602,2]
[360279067,1746691864409,-516.01686443,0.00012602,2]
[360279068,1746691866822,-1717.59859117,0.00012602,2]
[360279069,1746691866832,-400.0,0.00012602,2]
[360279070,1746691866842,-156.05613562,0.00012602,2]
[360279071,1746691866852,-832.05,0.00012602,2]
[360279072,1746691866862,-475.38,0.00012602,2]
[360279073,1746691866874,-604.46,0.00012602,2]
[360279074,1746691866883,-731.17,0.00012602,2]
[360279075,1746691866892,-1329.5,0.00012602,2]
[360279076,1746691866902,-400.0,0.00012602,2]
[360279077,1746691866911,-400.0,0.00012602,2]
[360279078,1746691866921,-400.0,0.00012602,2]
[360279079,1746691866930,-400.0,0.00012602,2]
[360279080,1746691866939,-470.2,0.00012602,2]
[360279081,1746691866949,-400.0,0.00012602,2]
[360279082,1746691866958,-1058.63,0.00012602,2]
[360279083,1746691866968,-1690.75,0.00012602,2]
[360279084,1746691866978,-824.24,0.00012602,2]
[360279085,1746691866988,-732.33,0.00012602,2]
[360279086,1746691866999,-1544.62,0.00012602,2]
[360279087,1746691867008,-785.37,0.00012602,2]
[360279088,1746691867019,-186.26791304,0.00012602,2]
[360279089,1746691867029,-816.04,0.00012602,2]
[360279090,1746691867041,-400.0,0.00012602,2]
[360279091,1746691867051,-327.74655312,0.00012602,2]
[360279092,1746691867060,-1999.86,0.00012602,2]
[360279093,1746691867070,-1522.11,0.00012602,2]
[360279094,1746691867080,-2551.38,0.00012602,2]
[360279095,1746691867090,-673.85,0.00012602,2]
[360279096,1746691867100,-794.85,0.00012602,2]
[360279097,1746691867110,-400.0,0.00012602,2]
[360279098,1746691867122,-405.47,0.00012602,2]
[360279099,1746691867131,-1062.22,0.00012602,2]
[360279100,1746691867141,-400.0,0.00012602,2]
[360279101,1746691867150,-961.04,0.00012602,2]
[360279102,1746691867159,-985.13,0.00012602,2]
[360279103,1746691867170,-500.0,0.00012773,2]
[360279104,1746691867180,-500.0,0.00012773,2]
[360279105,1746691867190,-500.60602428,0.00012773,2]
[360279106,1746691867200,-500.0,0.00012773,2]
[360279107,1746691867211,-264.51168735,0.00012773,2]
[360279108,1746691867220,-500.0,0.00012773,2]
[360279109,1746691867230,-500.0,0.00012773,2]
[360279110,1746691867240,-500.0,0.00012773,2]
[360279111,1746691867250,-500.0,0.00012773,2]
[360279112,1746691867259,-500.0,0.00012773,2]
[360279113,1746691867268,-500.0,0.00012773,2]
[360279114,1746691867278,-500.0,0.00012773,2]
[360279115,1746691867289,-500.0,0.00012773,2]
[360279116,1746691867298,-503.23741075,0.00012773,2]
[360279117,1746691867307,-500.0,0.00012773,2]
[360279118,1746691867479,-500.0,0.00012773,2]
[360279119,1746691867492,-502.77394319,0.00012773,2]
[360279120,1746691867502,-500.0,0.00012773,2]
[360279121,1746691867512,-196.44816772,0.00012773,2]
[360279122,1746691867523,-500.0,0.00012773,2]
[360279123,1746691867534,-500.25252204,0.00012773,2]
[360279124,1746691867543,-500.0,0.00012773,2]
[360279125,1746691867554,-500.0,0.00012773,2]
[360279126,1746691867564,-500.0,0.00012773,2]
[360279127,1746691867574,-500.0,0.00012773,2]
[360279128,1746691867583,-409.45001517,0.00012773,2]
[360279129,1746691867593,-500.48354988,0.00012773,2]
[360279130,1746691867603,-502.72871612,0.00012773,2]
[360279131,1746691867612,-500.0,0.00012773,2]
[360279132,1746691867623,-500.0,0.00012773,2]
[360279133,1746691867632,-500.0,0.00012773,2]
[360279134,1746691867641,-22429.6728321,0.000128,2]
[360279135,1746691867651,-22429.67283203,0.000128,2]
[360279136,1746691867659,-22429.67283203,0.000128,2]
[360279137,1746691867670,-22429.67283203,0.000128,2]
[360279138,1746691867679,-22429.67283203,0.000128,2]
[360279139,1746691867690,-22429.67283203,0.000128,2]
[360279140,1746691867700,-22429.67283203,0.000128,2]
[360279141,1746691867710,-7438.28202241,0.000128,2]
[360279142,1746691867724,-1013.7980449,0.000128,2]
[360279143,1746691867736,-9155.78377811,0.000128,2]
[360279144,1746691867755,-151.0,0.00010958,2]
[360279145,1746691867765,-1508.57360687,0.000128,2]
[360279146,1746691896582,-202.70512975,0.00010244,2]
[360279147,1746691928117,306.7928572,9.908e-05,2]
[360279148,1746691931181,200.23518423,0.00010147,2]
[360279149,1746691959194,250.0,0.00010147,2]
[360279154,1746692067615,204.795082,9.756e-05,2]
[360279160,1746692223524,-300.0,0.00010241,2]
[360279163,1746692263277,335.80805066,0.00010142,2]
[360279164,1746692265160,7895.8532115,9.669e-05,2]
[360279165,1746692284179,-300.0,0.00010241,2]
[360279167,1746692313880,-300.61983829,0.00010241,2]
[360279168,1746692315162,-385.6672634,0.00010241,2]
[360279169,1746692317685,-319.20889788,0.00010241,2]
[360279173,1746692359736,-293.29560635,0.0001024,2]
[360279176,1746692374090,-6.70439365,0.0001024,2]
[360279177,1746692374114,-167.9505747,0.00010241,2]
[360279178,1746692374138,-39.86356745,0.00010241,2]
[360279179,1746692374163,-5.44889665,0.00010241,2]
[360279180,1746692385582,1702.0,0.0002,90]
[360279181,1746692388986,-199.02021691,0.00010241,2]
[360279182,1746692401334,7345.0,0.0002,90]
[360279183,1746692402913,226.5882376,9.378e-05,2]
[360279184,1746692404158,-174.53594813,0.0001024,2]
[360279185,1746692419552,-125.46405187,0.0001024,2]
[360279186,1746692419575,-202.00503541,0.00010241,2]
[360279187,1746692434069,-294.0,0.0001024,2]
[360279188,1746692434092,-6.0,0.00010241,2]
[360279189,1746692434343,1821.6349836,9.378e-05,2]
[360279192,1746692451274,-286.26545636,0.00010241,2]
[360279194,1746692524470,-300.0,0.0001024,2]
[360279195,1746692546824,-375.07054882,0.0001024,2]
[360279196,1746692554097,-124.92945118,0.0001024,2]
[360279197,1746692554120,-375.07054882,0.0001024,2]
[360279198,1746692569871,-124.92945118,0.0001024,2]
[360279199,1746692569905,-229.03419288,0.0001024,2]
[360279200,1746692584102,-300.0,0.00010239,2]
[360279201,1746692584141,-270.96580712,0.0001024,2]
[360279202,1746692584171,-21.12685523,0.0001024,2]
[360279203,1746692599085,-183.0592021,0.0001024,2]
[360279204,1746692599114,-0.49023321,0.0001024,2]
[360279205,1746692614177,-189.97951763,0.0001024,2]
[360279206,1746692629633,-221.56374515,0.0001024,2]
[360279207,1746692643983,-198.4061188,0.00010239,2]
[360279208,1746692659074,-101.5938812,0.00010239,2]
[360279209,1746692659098,-118.37598275,0.0001024,2]